bitfinex-derivatives/quotes_BTCF0:USTF0_20241231
["timestamp","ask_amount","ask_price","bid_price","bid_amount"]
[1735652179514,0.05229,95769.0,95763.0,0.052292]
[1735652179715,0.05229,95769.0,95764.0,0.04518186]
[1735652180005,0.05229,95769.0,95760.0,0.3608]
[1735652180006,0.10514378,95770.0,95765.0,0.01305443]
[1735652180212,0.10514378,95770.0,95760.0,0.3608]
[1735652180403,0.10514378,95770.0,95767.0,0.05229]
[1735652180604,0.052288,95772.0,95768.0,0.01304946]
[1735652180918,0.052289,95770.0,95769.0,0.01304946]
[1735652181111,0.3608,95770.0,95755.0,0.052297]
[1735652181310,0.3608,95756.0,95755.0,0.052297]
[1735652181504,0.3608,95756.0,95755.0,0.06535984]
[1735652183207,0.3608,95756.0,95750.0,0.0523]
[1735652183509,0.3608,95756.0,95752.0,0.01310304]
[1735652183806,0.3608,95756.0,95755.0,0.052297]
[1735652184015,0.3608,95756.0,95755.0,0.06540004]
[1735652184202,0.413096,95756.0,95755.0,0.06540004]
[1735652184513,0.413096,95756.0,95755.0,0.01310304]
[1735652185605,0.3608,95756.0,95735.0,0.00156681]
[1735652185810,0.10514378,95745.0,95736.0,0.01236311]
[1735652186113,0.10514378,95745.0,95737.0,0.01236311]
[1735652186315,0.2177,95744.0,95735.0,0.00156681]
[1735652186508,0.052306,95739.0,95721.0,0.052315]
[1735652186705,0.3608,95729.0,95725.0,0.052313]
[1735652186905,0.2183,95728.0,95726.0,0.01236846]
[1735652187218,0.2183,95728.0,95712.0,0.3608]
[1735652187219,0.2183,95728.0,95727.0,0.052312]
[1735652187605,0.2183,95728.0,95721.0,0.052315]
[1735652187805,0.2183,95728.0,95722.0,0.03343589]
[1735652188122,0.052314,95725.0,95723.0,0.03343589]
[1735652188314,0.052314,95725.0,95724.0,0.02106624]
[1735652188511,0.3608,95727.0,95724.0,0.02106911]
[1735652188708,0.05232,95713.0,95705.0,0.052324]
[1735652189009,0.05232,95713.0,95707.0,0.052323]
[1735652189216,0.05232,95713.0,95708.0,0.03347172]
[1735652189415,0.05232,95713.0,95709.0,0.03347172]
[1735652189719,0.052321,95711.0,95710.0,0.03347172]
[1735652190012,0.052321,95711.0,95690.0,0.3644]
[1735652190013,0.05233,95695.0,95684.0,0.052336]
[1735652190210,0.05233,95695.0,95683.0,0.3608]
[1735652190211,0.3608,95693.0,95685.0,0.03351566]
[1735652190404,0.46594378,95693.0,95687.0,0.052334]
[1735652190600,0.46594378,95693.0,95688.0,0.03351566]
[1735652190805,0.46594378,95693.0,95689.0,0.03351566]
[1735652191013,0.46594378,95693.0,95690.0,0.08584766]
[1735652191210,0.3608,95693.0,95691.0,0.07348364]
[1735652191420,0.3608,95693.0,95692.0,0.02115164]
[1735652191619,0.2335,95710.0,95692.0,0.02115164]
[1735652191620,0.3608,95705.0,95692.0,0.02115164]
[1735652191802,0.564786,95715.0,95714.0,0.052319]
[1735652191803,0.18579742,95715.0,95714.0,0.052319]
[1735652192007,0.21839937,95730.0,95729.0,0.052311]
[1735652192306,0.27991561,95744.0,95743.0,0.052304]
[1735652192517,0.27991561,95744.0,95743.0,0.413104]
[1735652192818,0.27991561,95744.0,95743.0,0.713104]
[1735652193012,0.2379,95763.0,95762.0,0.052293]
[1735652193202,0.2379,95763.0,95762.0,0.413093]
[1735652193406,0.2379,95763.0,95762.0,0.43412576]
[1735652193812,0.2379,95763.0,95762.0,0.42541683]
[1735652194410,0.2379,95763.0,95762.0,0.3608]
[1735652194712,0.2379,95763.0,95757.0,0.052295]
[1735652194916,0.2372,95762.0,95760.0,0.052294]
[1735652195123,0.2379,95763.0,95754.0,0.3608]
[1735652195409,0.2379,95763.0,95755.0,0.01233352]
[1735652195610,0.2379,95763.0,95757.0,0.052296]
[1735652196202,0.2379,95763.0,95759.0,0.052295]
[1735652196517,0.2379,95763.0,95762.0,0.3608]
[1735652196712,0.2379,95763.0,95762.0,0.37313297]
[1735652196917,0.2379,95763.0,95762.0,0.3608]
[1735652197718,0.2379,95763.0,95762.0,0.37383862]
[1735652198319,0.2379,95763.0,95762.0,0.37384615]
[1735652198618,0.2379,95763.0,95762.0,0.3608]
[1735652198826,0.5987,95763.0,95758.0,0.052295]
[1735652199709,0.3608,95760.0,95740.0,0.3644]
[1735652199909,0.3608,95749.0,95744.0,0.052303]
[1735652200112,0.3608,95749.0,95745.0,0.0130747]
[1735652200113,0.052301,95748.0,95745.0,0.0130747]
[1735652200319,0.052305,95741.0,95729.0,0.052311]
[1735652200615,0.3608,95736.0,95730.0,0.02542951]
[1735652200821,0.288508,95735.0,95731.0,0.01308242]
[1735652201015,0.2362,95735.0,95732.0,0.01308242]
[1735652201317,0.2362,95735.0,95723.0,0.36236701]
[1735652201318,0.2362,95735.0,95733.0,0.01308242]
[1735652201512,0.2362,95735.0,95734.0,0.04642241]
[1735652202112,0.23946001,95749.0,95746.0,0.052302]
[1735652202413,0.2389,95749.0,95748.0,0.052301]
[1735652202612,0.2389,95749.0,95748.0,0.06538342]
[1735652203125,0.3608,95754.0,95748.0,0.0131033]
[1735652203322,0.3608,95754.0,95749.0,0.0131033]
[1735652203524,0.2231,95759.0,95758.0,0.052295]
[1735652203826,0.2231,95774.0,95761.0,0.052294]
[1735652204014,0.2231,95774.0,95761.0,0.0653973]
[1735652204213,0.2231,95774.0,95761.0,0.052294]
[1735652204423,0.052288,95773.0,95761.0,0.052294]
[1735652204721,0.052288,95771.0,95761.0,0.09871711]
[1735652204923,0.3608,95765.0,95761.0,0.0254449]
[1735652205123,0.3608,95765.0,95761.0,0.01311134]
[1735652205916,0.052296,95757.0,95747.0,0.052301]
[1735652206217,0.052296,95757.0,95749.0,0.0523]
[1735652206416,0.052296,95757.0,95750.0,0.02093667]
[1735652206722,0.052296,95757.0,95751.0,0.01233798]
[1735652206921,0.3608,95753.0,95733.0,0.3644]
[1735652207223,0.3608,95745.0,95734.0,0.01233841]
[1735652207407,0.3608,95745.0,95735.0,0.01233841]
[1735652207724,0.3608,95745.0,95742.0,0.052304]
[1735652208524,0.052305,95741.0,95737.0,0.052307]
[1735652208827,0.052305,95741.0,95738.0,0.01234665]
[1735652209011,0.052305,95741.0,95737.0,0.052307]
[1735652209909,0.2205,95744.0,95732.0,0.3608]
[1735652210122,0.2205,95744.0,95733.0,0.0123562]
[1735652210324,0.2205,95744.0,95734.0,0.0123562]
[1735652210621,0.2205,95744.0,95738.0,0.052306]
[1735652210809,0.2205,95744.0,95733.0,0.052309]
[1735652211016,0.2205,95744.0,95734.0,0.01235676]
[1735652211215,0.2205,95744.0,95735.0,0.01235676]
[1735652211412,0.2205,95744.0,95736.0,0.01235676]
[1735652211619,0.2205,95744.0,95737.0,0.01235676]
[1735652211925,0.2205,95744.0,95742.0,0.052304]
[1735652212112,0.2205,95744.0,95736.0,0.052307]
[1735652212316,0.2205,95744.0,95737.0,0.01235542]
[1735652212629,0.05231,95732.0,95727.0,0.052312]
[1735652212828,0.413107,95737.0,95728.0,0.01235862]
[1735652213016,0.3608,95737.0,95736.0,0.052307]
[1735652213719,0.2205,95744.0,95743.0,0.052304]
[1735652213925,0.2205,95744.0,95743.0,0.413104]
[1735652214118,0.2215,95744.0,95743.0,0.413104]
[1735652214731,0.2205,95744.0,95743.0,0.413104]
[1735652215231,0.2205,95744.0,95743.0,0.42545546]
[1735652216224,0.2225,95744.0,95743.0,0.42545546]
[1735652218033,0.2225,95744.0,95743.0,0.43851162]
[1735652218228,0.274803,95744.0,95743.0,0.01305616]
[1735652218620,0.2225,95744.0,95735.0,0.052308]
[1735652218821,0.2225,95744.0,95736.0,0.01305905]
[1735652219022,0.052305,95741.0,95737.0,0.01305905]
[1735652219238,0.2225,95744.0,95738.0,0.01305905]
[1735652219425,0.052306,95740.0,95739.0,0.01305905]
[1735652219827,0.23352317,95744.0,95739.0,0.01306236]
[1735652220038,0.052304,95742.0,95740.0,0.01306273]
[1735652220330,0.052304,95742.0,95741.0,0.01306273]
[1735652221234,0.23352317,95744.0,95741.0,0.01306273]
[1735652221424,0.23352317,95744.0,95742.0,0.01306273]
[1735652221636,0.23352317,95744.0,95743.0,0.01306273]
[1735652222141,0.28582617,95744.0,95743.0,0.03411292]
[1735652222328,0.23352317,95744.0,95743.0,0.0342069]
[1735652222535,0.28582617,95744.0,95743.0,0.0342069]
[1735652222840,0.052318,95717.0,95711.0,0.3608]
[1735652223039,0.0099266,95717.0,95716.0,0.03448783]
[1735652223223,0.052316,95721.0,95716.0,0.00156697]
[1735652223429,0.052317,95719.0,95716.0,0.052318]
[1735652223627,0.3608,95722.0,95711.0,0.01275772]
[1735652223834,0.052321,95711.0,95709.0,0.01275772]
[1735652224031,0.052321,95712.0,95705.0,0.052324]
[1735652224229,0.052321,95712.0,95706.0,0.03288048]
[1735652224435,0.052321,95712.0,95705.0,0.052324]
[1735652224730,0.052322,95709.0,95699.0,0.052327]
[1735652224936,0.1573395,95709.0,95700.0,0.0328711]
[1735652225136,0.3608,95701.0,95700.0,0.052327]
[1735652225538,0.3608,95701.0,95690.0,0.00156737]
[1735652225734,0.413127,95701.0,95694.0,0.05233]
[1735652225946,0.2301,95700.0,95697.0,0.052328]
[1735652226146,0.2301,95700.0,95698.0,0.03284121]
[1735652226347,0.2301,95700.0,95697.0,0.052328]
[1735652226648,0.2301,95700.0,95698.0,0.03282181]
[1735652226845,0.2301,95700.0,95697.0,0.052328]
[1735652227046,0.282427,95700.0,95691.0,0.052332]
[1735652227243,0.282427,95700.0,95692.0,0.03280724]
[1735652227441,0.2301,95700.0,95693.0,0.03280724]
[1735652227643,0.2301,95700.0,95690.0,0.00156737]
[1735652227644,0.052331,95692.0,95690.0,0.00156737]
[1735652227850,0.413131,95692.0,95690.0,0.00156737]
[1735652228353,0.3608,95692.0,95690.0,0.00156737]
[1735652229151,0.052332,95691.0,95690.0,0.00156737]
[1735652230055,0.052332,95691.0,95690.0,0.01056737]
[1735652230449,0.052332,95691.0,95690.0,0.00656737]
[1735652231154,0.3874395,95700.0,95690.0,0.00656737]
[1735652231346,0.3874395,95700.0,95699.0,0.052328]
[1735652231544,0.2301,95700.0,95699.0,0.052328]
[1735652232151,0.2301,95700.0,95694.0,0.05233]
[1735652232351,0.2301,95700.0,95695.0,0.03274474]
[1735652232553,0.2301,95700.0,95699.0,0.001]
[1735652232752,0.2301,95700.0,95699.0,0.0748038]
[1735652233153,0.2301,95700.0,95699.0,0.0224758]
[1735652233763,0.2301,95700.0,95699.0,0.02250863]
[1735652234147,0.282427,95700.0,95699.0,0.02350863]
[1735652234358,0.052332,95691.0,95690.0,0.00156737]
[1735652234853,0.052332,95691.0,95690.0,0.01501687]
[1735652235757,0.052332,95691.0,95690.0,0.02001687]
[1735652237057,0.052332,95691.0,95690.0,0.02296414]
[1735652237759,0.06739223,95691.0,95690.0,0.02296414]
[1735652240155,0.06739223,95691.0,95690.0,0.02294375]
[1735652242552,0.06739223,95691.0,95690.0,0.02290811]
[1735652243158,0.06739223,95691.0,95690.0,0.01633797]
[1735652243362,0.07639223,95691.0,95690.0,0.01633797]
[1735652244059,0.07639223,95691.0,95690.0,0.01433797]
[1735652244254,0.02906023,95691.0,95690.0,0.08801089]
[1735652244461,0.02906023,95691.0,95690.0,0.12079256]
[1735652245966,0.08139223,95691.0,95690.0,0.01364224]
[1735652246269,0.052335,95686.0,95670.0,0.0015678]
[1735652246473,0.02906023,95691.0,95676.0,0.3608]
[1735652246766,0.005,95691.0,95690.0,0.052333]
[1735652246964,0.014,95691.0,95690.0,0.053333]
[1735652247165,0.01349835,95691.0,95690.0,0.001]
[1735652247359,0.009,95691.0,95690.0,0.001]
[1735652247559,0.066332,95691.0,95690.0,0.001]
[1735652247761,0.014,95691.0,95690.0,0.053333]
[1735652247972,0.014,95691.0,95690.0,0.08615538]
[1735652248362,0.005,95691.0,95690.0,0.08515538]
[1735652248669,0.005,95691.0,95690.0,0.052333]
[1735652249065,0.014,95691.0,95690.0,0.053333]
[1735652249771,0.065332,95691.0,95690.0,0.001]
[1735652250071,0.052335,95686.0,95685.0,0.052335]
[1735652250369,0.013,95691.0,95681.0,0.052337]
[1735652250570,0.052335,95686.0,95683.0,0.052336]
[1735652250762,0.013,95691.0,95684.0,0.03287323]
[1735652250959,0.013,95691.0,95683.0,0.052336]
[1735652251361,0.052337,95683.0,95679.0,0.052338]
[1735652251568,0.052337,95682.0,95680.0,0.06954613]
[1735652251771,0.3608,95685.0,95674.0,0.413141]
[1735652252066,0.3608,95685.0,95675.0,0.03289936]
[1735652252267,0.052336,95684.0,95683.0,0.001]
[1735652252868,0.052336,95684.0,95680.0,0.052338]
[1735652253075,0.3648,95685.0,95674.0,0.3608]
[1735652253262,0.417135,95685.0,95680.0,0.052338]
[1735652253463,0.052337,95682.0,95680.0,0.052338]
[1735652253775,0.052337,95682.0,95677.0,0.052339]
[1735652254076,0.052337,95682.0,95678.0,0.03248916]
[1735652254273,0.05111034,95682.0,95679.0,0.03248916]
[1735652254571,0.05111034,95682.0,95678.0,0.052339]
[1735652254771,0.05411034,95682.0,95679.0,0.03251032]
[1735652254970,0.05411034,95682.0,95678.0,0.052339]
[1735652254971,0.05411034,95682.0,95680.0,0.0325096]
[1735652255274,0.06011034,95682.0,95678.0,0.053339]
[1735652255474,0.06011034,95682.0,95679.0,0.03251638]
[1735652255676,0.06011034,95682.0,95680.0,0.03251496]
[1735652255875,0.06111034,95682.0,95679.0,0.001]
[1735652256370,0.05811034,95682.0,95679.0,0.001]
[1735652256577,0.009,95682.0,95679.0,0.001]
[1735652256881,0.008,95682.0,95679.0,0.052338]
[1735652257169,0.008,95682.0,95680.0,0.02001313]
[1735652257374,0.008,95682.0,95679.0,0.052338]
[1735652257570,0.008,95682.0,95680.0,0.03251529]
[1735652257768,0.008,95682.0,95679.0,0.052338]
[1735652257985,0.006,95682.0,95680.0,0.04564162]
[1735652258175,0.006,95682.0,95678.0,0.001]
[1735652258176,0.008,95682.0,95681.0,0.01312633]
[1735652258471,0.009,95682.0,95681.0,0.01312633]
[1735652259378,0.061337,95682.0,95681.0,0.01312633]
[1735652259564,0.052337,95682.0,95681.0,0.01312633]
[1735652259766,0.063337,95682.0,95681.0,0.01412633]
[1735652261073,0.011,95682.0,95681.0,0.01412633]
[1735652261273,0.063337,95682.0,95681.0,0.0140733]
[1735652261474,0.055337,95682.0,95681.0,0.0130733]
[1735652261672,0.063337,95682.0,95681.0,0.0140733]
[1735652262983,0.060337,95682.0,95681.0,0.0140733]
[1735652263181,0.063337,95682.0,95681.0,0.0140733]
[1735652263572,0.063337,95682.0,95670.0,0.00156778]
[1735652263783,0.413143,95671.0,95670.0,0.00156778]
[1735652265772,0.417143,95671.0,95670.0,0.00156778]
[1735652266674,0.418143,95671.0,95670.0,0.00156778]
[1735652268284,0.43268893,95671.0,95670.0,0.00156778]
[1735652269185,0.052344,95670.0,95660.0,0.052349]
[1735652269477,0.052344,95670.0,95661.0,0.08487478]
[1735652269782,0.052344,95670.0,95662.0,0.03252751]
[1735652269981,0.052344,95670.0,95663.0,0.03252751]
[1735652270172,0.052344,95669.0,95661.0,0.052348]
[1735652270374,0.052344,95669.0,95662.0,0.03252434]
[1735652270681,0.052345,95667.0,95663.0,0.03252434]
[1735652270980,0.052345,95667.0,95661.0,0.052348]
[1735652271277,0.052345,95667.0,95663.0,0.001]
[1735652272078,0.052347,95664.0,95663.0,0.001]
[1735652272981,0.37534593,95671.0,95652.0,0.052353]
[1735652272982,0.05235,95658.0,95652.0,0.052353]
[1735652273184,0.052351,95657.0,95653.0,0.03251573]
[1735652273385,0.052351,95657.0,95654.0,0.03251573]
[1735652273689,0.052351,95657.0,95655.0,0.03251573]
[1735652273874,0.052351,95657.0,95656.0,0.03251573]
[1735652275484,0.053351,95657.0,95656.0,0.03251573]
[1735652275676,0.03449795,95657.0,95656.0,0.04542624]
[1735652275993,0.03349795,95657.0,95656.0,0.04942624]
[1735652276179,0.03349795,95657.0,95656.0,0.01691051]
[1735652276380,0.03349795,95657.0,95656.0,0.01891051]
[1735652276886,0.04834442,95657.0,95656.0,0.01891051]
[1735652278681,0.04834442,95657.0,95656.0,0.07126151]
[1735652278682,0.01484647,95657.0,95656.0,0.07126151]
[1735652278979,0.3608,95663.0,95660.0,0.052349]
[1735652279184,0.3608,95663.0,95661.0,0.06525851]
[1735652279392,0.3608,95663.0,95662.0,0.06525851]
[1735652279585,0.413147,95663.0,95662.0,0.01288609]
[1735652280094,0.3608,95663.0,95662.0,0.01288609]
[1735652280286,0.37534835,95663.0,95662.0,0.06523409]
[1735652280683,0.01454835,95663.0,95662.0,0.06523409]
[1735652280989,0.15649826,95668.0,95667.0,0.052345]
[1735652281195,0.15649826,95668.0,95667.0,0.01288609]
[1735652281591,0.1709858,95668.0,95667.0,0.06523109]
[1735652281797,0.01448754,95668.0,95667.0,0.06523109]
[1735652281987,0.2277,95672.0,95667.0,0.01288609]
[1735652282198,0.2277,95672.0,95669.0,0.052344]
[1735652282385,0.2277,95672.0,95670.0,0.01288609]
[1735652282790,0.413143,95671.0,95670.0,0.01288609]
[1735652283186,0.42788896,95671.0,95670.0,0.01288609]
[1735652283590,0.43088896,95671.0,95670.0,0.01288609]
[1735652283792,0.37854596,95671.0,95650.0,0.18418654]
[1735652284096,0.10506801,95661.0,95656.0,0.052351]
[1735652284294,0.3608,95663.0,95651.0,0.416754]
[1735652284598,0.052353,95652.0,95651.0,0.3644]
[1735652284801,0.05235,95658.0,95651.0,0.3644]
[1735652285100,0.052351,95656.0,95651.0,0.052354]
[1735652285294,0.052351,95656.0,95651.0,0.056354]
[1735652285493,0.052352,95655.0,95651.0,0.004]
[1735652285798,0.15668605,95660.0,95645.0,0.3608]
[1735652286092,0.001,95658.0,95651.0,0.004]
[1735652286399,0.001,95656.0,95654.0,0.052352]
[1735652286987,0.001,95656.0,95655.0,0.052352]
[1735652287490,0.001,95656.0,95655.0,0.06470199]
[1735652288001,0.3608,95657.0,95652.0,0.052353]
[1735652288303,0.052351,95656.0,95655.0,0.002]
[1735652288900,0.053351,95656.0,95655.0,0.002]
[1735652289298,0.052351,95656.0,95655.0,0.002]
[1735652289796,0.053351,95656.0,95655.0,0.002]
[1735652289990,0.052352,95654.0,95652.0,0.003]
[1735652290190,0.052353,95653.0,95652.0,0.003]
[1735652291001,0.052356,95648.0,95641.0,0.052359]
[1735652291195,0.3608,95646.0,95642.0,0.01235764]
[1735652291401,0.3608,95646.0,95635.0,0.00156839]
[1735652291595,0.3608,95646.0,95643.0,0.052358]
[1735652291792,0.3608,95646.0,95635.0,0.00156839]
[1735652291995,0.34086801,95645.0,95644.0,0.052358]
[1735652292193,0.3608,95646.0,95644.0,0.052357]
[1735652292499,0.3608,95646.0,95645.0,0.052357]
[1735652292694,0.3618,95646.0,95645.0,0.06471385]
[1735652292898,0.51859581,95646.0,95645.0,0.06471385]
[1735652293201,0.51759581,95646.0,95645.0,0.06471385]
[1735652293399,0.51859581,95646.0,95645.0,0.06471385]
[1735652293602,0.51859581,95646.0,95645.0,0.06471437]
[1735652293904,0.3618,95646.0,95645.0,0.06471437]
[1735652294291,0.3618,95646.0,95645.0,0.06471636]
[1735652294501,0.414157,95646.0,95645.0,0.06471636]
[1735652294699,0.413157,95646.0,95645.0,0.06571636]
[1735652294901,0.413157,95646.0,95645.0,0.06671636]
[1735652295902,0.413157,95646.0,95645.0,0.07951715]
[1735652296097,0.413157,95646.0,95645.0,0.06671819]
[1735652296302,0.413157,95646.0,95645.0,0.07951913]
[1735652297113,0.413157,95646.0,95645.0,0.02716213]
[1735652297310,0.413157,95646.0,95645.0,0.01480094]
[1735652299106,0.413157,95646.0,95645.0,0.06715794]
[1735652299908,0.413157,95646.0,95645.0,0.054357]
[1735652300104,0.413157,95646.0,95645.0,0.06715118]
[1735652301007,0.3608,95646.0,95645.0,0.06715118]
[1735652301709,0.413151,95646.0,95645.0,0.06715118]
[1735652302004,0.3608,95646.0,95645.0,0.06715118]
[1735652302210,0.360064,95646.0,95645.0,0.06715118]
[1735652302506,0.37482866,95646.0,95645.0,0.06715118]
[1735652303499,0.37482866,95646.0,95645.0,0.054357]
[1735652303705,0.42717966,95646.0,95645.0,0.01477937]
[1735652306001,0.42717966,95646.0,95645.0,0.054352]
[1735652306202,0.42717966,95646.0,95645.0,0.06715182]
[1735652306517,0.42717966,95646.0,95645.0,0.01479982]
[1735652307107,0.37482866,95646.0,95645.0,0.06715182]
[1735652308906,0.3608,95657.0,95646.0,0.3644]
[1735652309211,0.3608,95657.0,95656.0,0.052346]
[1735652309410,0.3608,95657.0,95656.0,0.0651442]
[1735652309811,0.37465733,95657.0,95656.0,0.0651442]
[1735652310508,0.37465733,95657.0,95656.0,0.0127982]
[1735652310509,0.42700233,95657.0,95656.0,0.0127982]
[1735652310709,0.37465733,95657.0,95656.0,0.0127982]
[1735652310917,0.37465733,95657.0,95656.0,0.0651442]
[1735652311217,0.42900233,95657.0,95656.0,0.0127982]
[1735652311419,0.052355,95640.0,95637.0,0.18418654]
[1735652311617,0.052346,95655.0,95638.0,0.01236013]
[1735652311618,0.052355,95639.0,95638.0,0.01236013]
[1735652311920,0.3608,95644.0,95643.0,0.052353]
[1735652312419,0.3608,95644.0,95643.0,0.0647252]
[1735652312620,0.3608,95644.0,95643.0,0.06472506]
[1735652314218,0.3608,95644.0,95643.0,0.06572506]
[1735652314515,0.3608,95644.0,95643.0,0.06672506]
[1735652315024,0.413152,95644.0,95643.0,0.06672506]
[1735652315214,0.413152,95644.0,95643.0,0.054353]
[1735652315613,0.413152,95644.0,95643.0,0.002]
[1735652315614,0.42692019,95644.0,95643.0,0.002]
[1735652321325,0.4267874,95644.0,95643.0,0.002]
[1735652321925,0.61409261,95644.0,95643.0,0.002]
[1735652323315,0.3744354,95644.0,95643.0,0.002]
[1735652323521,0.3744354,95644.0,95643.0,0.054353]
[1735652325231,0.3744354,95644.0,95643.0,0.002]
[1735652325424,0.4267874,95644.0,95643.0,0.002]
[1735652325623,0.052357,95636.0,95631.0,0.3644]
[1735652325821,0.413157,95636.0,95627.0,0.23654854]
[1735652326232,0.3608,95636.0,95630.0,0.05236]
[1735652326426,0.36066721,95636.0,95630.0,0.05236]
[1735652326734,0.36066721,95636.0,95635.0,0.00456839]
[1735652327429,0.41402421,95636.0,95635.0,0.00456839]
[1735652330631,0.36166721,95636.0,95635.0,0.05692539]
[1735652332318,0.41402421,95636.0,95635.0,0.03279193]
[1735652333230,0.41402421,95636.0,95635.0,0.00456839]
[1735652334935,0.36166721,95636.0,95635.0,0.05692539]
[1735652336330,0.36166721,95636.0,95635.0,0.00456839]
[1735652340323,0.41402421,95636.0,95635.0,0.00456839]
[1735652342930,0.36166721,95636.0,95635.0,0.00456839]
[1735652343534,0.36166721,95636.0,95635.0,0.05692539]
[1735652343935,0.41402421,95636.0,95635.0,0.00456839]
[1735652345845,0.36166721,95636.0,95635.0,0.05692539]
[1735652346242,0.36166721,95636.0,95635.0,0.06930987]
[1735652346544,0.36166721,95636.0,95635.0,0.08515036]
[1735652348049,0.36166721,95636.0,95635.0,0.11828613]
[1735652348344,0.17707403,95643.0,95636.0,0.052357]
[1735652348548,0.17651402,95643.0,95642.0,0.052354]
[1735652348744,0.17651402,95643.0,95642.0,0.06518177]
[1735652349042,0.01376819,95644.0,95643.0,0.052353]
[1735652349247,0.17651402,95650.0,95643.0,0.01282777]
[1735652349443,0.052355,95639.0,95638.0,0.3608]
[1735652349643,0.052355,95639.0,95638.0,0.37364156]
[1735652350439,0.052355,95639.0,95635.0,0.00156839]
[1735652350651,0.052357,95637.0,95635.0,0.00156839]
[1735652350947,0.2341,95636.0,95635.0,0.00156839]
[1735652351152,0.2341,95636.0,95635.0,0.01444683]
[1735652351347,0.286457,95636.0,95635.0,0.01444683]
[1735652351650,0.286457,95636.0,95635.0,0.01644683]
[1735652351848,0.286457,95636.0,95635.0,0.00356839]
[1735652353347,0.286457,95636.0,95635.0,0.00656839]
[1735652353549,0.287457,95636.0,95635.0,0.00556839]
[1735652354450,0.052363,95624.0,95623.0,0.3608]
[1735652354642,0.052363,95624.0,95623.0,0.37365479]
[1735652355348,0.3608,95632.0,95623.0,0.37365479]
[1735652355543,0.052361,95628.0,95624.0,0.01285479]
[1735652355737,0.052361,95628.0,95625.0,0.01285479]
[1735652355941,0.24900599,95636.0,95626.0,0.01285479]
[1735652356143,0.30136299,95636.0,95632.0,0.052359]
[1735652356651,0.30036299,95636.0,95632.0,0.052359]
[1735652357053,0.30036299,95636.0,95633.0,0.01286407]
[1735652357253,0.052358,95633.0,95632.0,0.3608]
[1735652357453,0.052358,95633.0,95632.0,0.37366417]
[1735652357954,0.052358,95633.0,95632.0,0.3608]
[1735652358142,0.052358,95633.0,95632.0,0.37368809]
[1735652359552,0.053359,95633.0,95632.0,0.01288895]
[1735652360452,0.052363,95625.0,95624.0,0.35761193]
[1735652360947,0.3608,95625.0,95613.0,0.18418654]
[1735652361152,0.3608,95616.0,95614.0,0.01612197]
[1735652361351,0.052372,95609.0,95608.0,0.14909495]
[1735652361547,0.052374,95604.0,95603.0,0.15066382]
[1735652361750,0.413174,95604.0,95603.0,0.15066382]
[1735652362454,0.052374,95604.0,95603.0,0.15066382]
[1735652362847,0.052374,95604.0,95603.0,0.15266382]
[1735652363548,0.052374,95604.0,95603.0,0.00356887]
[1735652363949,0.10527244,95620.0,95603.0,0.00356887]
[1735652364144,0.3608,95628.0,95613.0,0.052369]
[1735652364145,0.2567,95623.0,95613.0,0.052369]
[1735652364354,0.10527244,95620.0,95613.0,0.052369]
[1735652364649,0.2481,95614.0,95613.0,0.052369]
[1735652364851,0.2481,95614.0,95604.0,0.3608]
[1735652365057,0.052374,95605.0,95604.0,0.3608]
[1735652365356,0.052374,95606.0,95603.0,0.00156887]
[1735652365547,0.052374,95604.0,95603.0,0.00156887]
[1735652366950,0.052374,95604.0,95603.0,0.00356887]
[1735652367548,0.052372,95609.0,95603.0,0.00356887]
[1735652367849,0.052372,95608.0,95603.0,0.00356887]
[1735652368059,0.052374,95606.0,95603.0,0.00356887]
[1735652368245,0.12516383,95607.0,95603.0,0.00356887]
[1735652368446,0.12516383,95607.0,95604.0,0.3608]
[1735652368647,0.12516383,95607.0,95606.0,0.052373]
[1735652369454,0.12516383,95611.0,95610.0,0.052371]
[1735652370949,0.12516383,95622.0,95617.0,0.052367]
[1735652371150,0.12516383,95622.0,95618.0,0.3608]
[1735652371554,0.052366,95620.0,95618.0,0.3608]
[1735652372266,0.37450538,95628.0,95618.0,0.3608]
[1735652372267,0.052366,95619.0,95618.0,0.3608]
[1735652372851,0.006,95620.0,95618.0,0.3608]
[1735652373160,0.006,95620.0,95619.0,0.052366]
[1735652373747,0.004,95620.0,95619.0,0.052366]
[1735652374150,0.004,95620.0,95618.0,0.3608]
[1735652374457,0.052366,95619.0,95618.0,0.3608]
[1735652374650,0.056366,95619.0,95618.0,0.3608]
[1735652375361,0.052366,95619.0,95618.0,0.3608]
[1735652375954,0.002,95620.0,95618.0,0.413167]
[1735652376253,0.004,95619.0,95618.0,0.413167]
[1735652376564,0.006,95619.0,95618.0,0.413167]
[1735652377152,0.004,95619.0,95618.0,0.413167]
[1735652377755,0.002,95620.0,95619.0,0.052366]
[1735652377956,0.002,95620.0,95619.0,0.06518046]
[1735652378855,0.12516383,95622.0,95619.0,0.01281446]
[1735652379156,0.052363,95625.0,95620.0,0.052365]
[1735652379770,0.052363,95625.0,95621.0,0.052365]
[1735652380759,0.054363,95625.0,95621.0,0.052365]
[1735652381153,0.005,95622.0,95621.0,0.052365]
[1735652381759,0.008,95625.0,95619.0,0.052366]
[1735652381960,0.008,95625.0,95624.0,0.052363]
[1735652382355,0.002,95625.0,95624.0,0.052363]
[1735652383064,0.15656498,95627.0,95626.0,0.052362]
[1735652383567,0.15656498,95627.0,95626.0,0.05472676]
[1735652383956,0.17027036,95628.0,95626.0,0.05472676]
[1735652384154,0.15656498,95628.0,95627.0,0.052362]
[1735652384559,0.15656498,95628.0,95627.0,0.08488026]
[1735652384765,0.15656498,95628.0,95627.0,0.052362]
[1735652384964,0.06310267,95628.0,95627.0,0.00561874]
[1735652385166,0.06310267,95628.0,95627.0,0.01595104]
[1735652385359,0.07110267,95628.0,95627.0,0.06831304]
[1735652385764,0.07110267,95628.0,95627.0,0.06827304]
[1735652386068,0.31456899,95628.0,95627.0,0.06827304]
[1735652386263,0.31456899,95628.0,95625.0,0.45165304]
[1735652386464,0.31856899,95628.0,95625.0,0.34618598]
[1735652386858,0.31856899,95628.0,95627.0,0.052362]
[1735652387057,0.012,95628.0,95627.0,0.052362]